bitfinex/quotes_SOLUSD_20250101
["timestamp","ask_amount","ask_price","bid_price","bid_amount"]
[1735754372998,10.67856657,190.92,190.87,23.776884]
[1735754373989,10.67856657,190.91,190.87,23.776884]
[1735754374184,6.39389494,190.97,190.87,23.776884]
[1735754374414,10.67856657,190.91,190.87,23.776884]
[1735754375698,6.39389494,190.97,190.87,23.776884]
[1735754375859,10.67856657,190.92,190.87,23.776884]
[1735754376262,10.67856657,190.92,190.86,1.612]
[1735754376574,6.39389494,190.97,190.86,1.612]
[1735754376575,10.67856657,190.91,190.86,1.612]
[1735754376775,6.39389494,190.97,190.87,23.776884]
[1735754376980,10.67856657,190.94,190.87,34.45545057]
[1735754379866,10.67856657,190.93,190.87,23.776884]
[1735754381067,7.8535,191.0,190.89,23.776884]
[1735754381371,10.67856657,190.93,190.89,23.776884]
[1735754382901,10.67856657,190.94,190.89,23.776884]
[1735754383389,20.0,190.99,190.89,23.776884]
[1735754383594,10.67856657,190.95,190.89,23.776884]
[1735754383890,10.67856657,190.95,190.89,34.45545057]
[1735754385594,10.67856657,190.96,190.89,34.45545057]
[1735754386678,10.67856657,190.96,190.91,23.776884]
[1735754391295,10.67856657,190.96,190.93,23.776884]
[1735754391792,10.67856657,190.95,190.89,23.776884]
[1735754393985,10.67856657,190.94,190.89,23.776884]
[1735754394405,10.67856657,190.95,190.89,23.776884]
[1735754394696,10.67856657,190.94,190.89,23.776884]
[1735754394995,10.67856657,190.95,190.89,23.776884]
[1735754398771,10.67856657,190.96,190.89,23.776884]
[1735754400085,10.67856657,190.95,190.89,23.776884]
[1735754400715,10.67856657,190.96,190.89,23.776884]
[1735754400918,63.20312381,191.02,190.89,34.45545057]
[1735754401231,10.67856657,190.99,190.92,10.67856657]
[1735754401831,10.67856657,190.99,190.92,23.776884]
[1735754402325,10.67856657,190.98,190.92,23.776884]
[1735754402702,1.6336,191.04,190.92,23.776884]
[1735754402902,10.67856657,190.99,190.92,23.776884]
[1735754403298,10.67856657,190.98,190.92,23.776884]
[1735754403718,10.67856657,190.94,190.88,6.642]
[1735754404032,10.67856657,190.93,190.88,6.642]
[1735754404435,10.67856657,190.94,190.88,6.642]
[1735754404623,10.67856657,190.94,190.89,23.776884]
[1735754404836,10.67856657,190.95,190.89,23.776884]
[1735754406840,10.67856657,190.96,190.89,34.45545057]
[1735754407608,1.6336,191.04,190.92,12.34246657]
[1735754407836,10.67856657,190.99,190.92,36.11935057]
[1735754408028,10.67856657,190.99,190.93,23.776884]
[1735754408329,10.67856657,190.99,190.93,25.27202258]
[1735754408710,10.67856657,190.99,190.93,23.776884]
[1735754412531,10.67856657,190.98,190.94,20.0]
[1735754412703,10.67856657,190.98,190.95,23.776884]
[1735754413104,10.67856657,190.99,190.93,34.45545057]
[1735754413933,10.67856657,190.99,190.92,10.67856657]
[1735754414118,10.67856657,190.99,190.93,23.776884]
[1735754415703,1.6336,191.04,190.93,23.776884]
[1735754415904,10.67856657,191.0,190.93,34.45545057]
[1735754417521,1.6336,191.04,190.95,23.776884]
[1735754417522,10.67856657,191.01,190.95,23.776884]
[1735754418728,10.67856657,191.01,190.95,10.67856657]
[1735754419459,10.67856657,191.02,190.95,10.67856657]
[1735754420206,1.6336,191.04,190.94,10.67856657]
[1735754420207,10.67856657,191.0,190.94,10.67856657]
[1735754420838,10.67856657,191.01,190.95,23.776884]
[1735754421417,10.67856657,191.01,190.93,23.776884]
[1735754421724,10.67856657,191.01,190.95,23.776884]
[1735754427252,10.67856657,191.01,190.97,23.776884]
[1735754427922,1.6336,191.04,190.97,23.776884]
[1735754428122,10.67856657,191.01,190.97,23.776884]
[1735754428624,10.67856657,191.02,190.97,23.776884]
[1735754430449,6.00312381,191.07,190.97,23.776884]
[1735754430622,10.67856657,191.04,190.99,23.776884]
[1735754430820,1.6619,191.08,191.01,23.776884]
[1735754431159,10.67856657,191.05,190.99,10.67856657]
[1735754432049,10.67856657,191.05,190.99,23.776884]
[1735754432723,10.67856657,191.0,190.96,10.678567]
[1735754432923,10.67856657,190.97,190.89,18.90065627]
[1735754433142,10.67856657,190.95,190.89,18.90065627]
[1735754433355,87.2,191.08,190.95,23.776884]
[1735754433541,6.00312381,191.07,190.95,23.776884]
[1735754433755,87.2,191.08,190.95,23.776884]
[1735754433925,87.2,191.08,190.94,10.67856657]
[1735754433926,10.67856657,191.01,190.94,23.776884]
[1735754434126,57.2,191.08,190.95,23.776884]
[1735754434343,10.67856657,191.02,190.95,34.45545057]
[1735754434538,10.67856657,191.02,190.97,23.776884]
[1735754436241,10.67856657,191.04,190.97,10.67856657]
[1735754437729,10.67856657,191.05,190.99,23.776884]
[1735754438028,10.67856657,191.06,190.99,34.45545057]
[1735754439371,1.6619,191.09,190.99,34.45545057]
[1735754439554,10.67856657,191.06,190.99,34.45545057]
[1735754439973,10.67856657,191.05,190.99,43.776884]
[1735754440472,10.67856657,191.06,190.99,54.45545057]
[1735754440841,10.67856657,191.06,190.99,43.776884]
[1735754441181,10.67856657,191.04,190.99,23.776884]
[1735754443169,10.67856657,191.02,190.96,10.67856657]
[1735754443556,10.67856657,191.02,190.96,23.776884]
[1735754444256,10.67856657,191.01,190.94,1.5809]
[1735754444500,10.67856657,191.01,190.93,10.678567]
[1735754444501,10.67856657,190.99,190.93,10.678567]
[1735754444667,10.67856657,190.96,190.93,10.678567]
[1735754446158,10.67856657,190.96,190.89,12.24456657]
[1735754446480,10.67856657,190.95,190.89,1.566]
[1735754446857,10.67856657,190.94,190.84,1.566]
[1735754447057,10.67856657,190.93,190.91,10.678567]
[1735754447359,10.67856657,190.93,190.87,10.67856657]
[1735754447665,10.67856657,190.93,190.88,10.678567]
[1735754448389,10.67856657,190.94,190.89,23.776884]
[1735754448760,10.67856657,190.93,190.88,10.678567]
[1735754449266,10.67856657,190.89,190.88,10.678567]
[1735754449473,10.67856657,190.89,190.83,10.67856657]
[1735754449674,10.67856657,190.9,190.83,10.67856657]
[1735754450360,10.67856657,190.9,190.84,23.776884]
[1735754450558,10.67856657,190.91,190.84,34.45545057]
[1735754450982,10.67856657,190.92,190.86,23.776884]
[1735754452186,10.67856657,190.91,190.84,10.67856657]
[1735754453084,10.67856657,190.9,190.83,10.67856657]
[1735754453290,10.67856657,190.9,190.84,23.776884]
[1735754453468,10.67856657,190.89,190.84,34.455451]
[1735754453997,10.67856657,190.89,190.82,10.67856657]
[1735754454504,10.67856657,190.88,190.83,20.216207]
[1735754455200,10.67856657,190.88,190.81,10.67856657]
[1735754455493,10.67856657,190.88,190.83,23.776884]
[1735754456377,10.67856657,190.88,190.81,10.67856657]
[1735754456697,10.67856657,190.87,190.81,44.777627]
[1735754457300,10.67856657,190.89,190.82,34.45545057]
[1735754457602,10.67856657,190.91,190.84,10.67856657]
[1735754458470,30.67856657,190.92,190.85,10.67856657]
[1735754459200,10.67856657,190.92,190.85,10.67856657]
[1735754459366,12.27486657,190.93,190.87,10.67856657]
[1735754459570,10.67856657,190.93,190.87,10.67856657]
[1735754460599,10.67856657,190.92,190.85,10.67856657]
[1735754460812,10.67856657,190.91,190.84,10.67856657]
[1735754461123,10.67856657,190.92,190.85,34.45545057]
[1735754461885,10.67856657,190.91,190.85,34.45545057]
[1735754463224,10.67856657,190.92,190.85,34.45545057]
[1735754465515,10.67856657,190.91,190.85,34.45545057]
[1735754465819,10.67856657,190.89,190.82,10.67856657]
[1735754466008,10.67856657,190.88,190.81,10.67856657]
[1735754466406,10.67856657,190.88,190.82,23.776884]
[1735754466920,10.67856657,190.88,190.82,10.67856657]
[1735754467100,10.67856657,190.89,190.82,10.67856657]
[1735754467808,10.67856657,190.89,190.82,34.45545057]
[1735754468116,10.67856657,190.92,190.85,10.67856657]
[1735754473430,10.67856657,190.9,190.81,23.776884]
[1735754473728,10.67856657,190.9,190.83,10.67856657]
[1735754474596,10.67856657,190.91,190.84,10.67856657]
[1735754475418,10.67856657,190.92,190.85,10.67856657]
[1735754477439,10.67856657,190.94,190.87,10.67856657]
[1735754477734,10.67856657,190.93,190.86,10.67856657]
[1735754479234,10.67856657,190.94,190.86,34.45545057]
[1735754479567,10.67856657,190.94,190.87,10.67856657]
[1735754480237,10.67856657,190.94,190.86,34.45545057]
[1735754480440,10.67856657,190.93,190.86,34.45545057]
[1735754483343,10.67856657,190.91,190.85,1.5803]
[1735754486460,10.67856657,190.87,190.8,12.25046657]
[1735754486953,10.67856657,190.87,190.81,23.776884]
[1735754487156,10.67856657,190.87,190.8,12.25046657]
[1735754487531,10.67856657,190.87,190.81,23.776884]
[1735754489956,10.67856657,190.88,190.81,34.45545057]
[1735754490731,10.67856657,190.89,190.82,10.67856657]
[1735754495958,10.67856657,190.89,190.81,34.45545057]
[1735754496130,10.67856657,190.87,190.81,23.776884]
[1735754496332,10.67856657,190.87,190.8,12.25046657]
[1735754496534,10.67856657,190.87,190.8,1.5719]
[1735754497450,10.67856657,190.86,190.8,1.5719]
[1735754498061,10.67856657,190.83,190.76,10.67856657]
[1735754498442,10.67856657,190.83,190.77,23.776884]
[1735754499834,10.67856657,190.84,190.77,10.67856657]
[1735754503146,10.67856657,190.83,190.76,10.67856657]
[1735754506457,10.67856657,190.81,190.74,1.5719]
[1735754506756,10.67856657,190.8,190.74,1.5719]
[1735754507134,10.67856657,190.79,190.74,1.5719]
[1735754509072,10.67856657,190.78,190.74,1.5719]
[1735754509238,10.67856657,190.75,190.69,1.5249]
[1735754509440,10.67856657,190.75,190.69,12.20346657]
[1735754509658,10.67856657,190.75,190.72,1.49113235]
[1735754510572,10.67856657,190.74,190.69,1.5249]
[1735754511960,10.67856657,190.73,190.69,1.5249]
[1735754512167,10.67856657,190.71,190.65,12.17023639]
[1735754512350,10.67856657,190.71,190.66,23.776884]
[1735754512551,10.67856657,190.71,190.65,10.67856657]
[1735754512860,10.67856657,190.71,190.66,23.776884]
[1735754513059,10.67856657,190.69,190.64,9.67346982]
[1735754513258,10.67856657,190.69,190.64,8.1818]
[1735754513460,10.67856657,190.69,190.64,1.5544]
[1735754513854,10.67856657,190.68,190.64,1.5544]
[1735754514255,10.67856657,190.68,190.61,10.67856657]
[1735754514585,10.67856657,190.68,190.62,10.67856657]
[1735754515076,10.67856657,190.67,190.6,6.6274]
[1735754515244,10.67856657,190.67,190.6,17.30596657]
[1735754515449,10.67856657,190.68,190.61,10.67856657]
[1735754516167,63.20320755,190.73,190.63,10.67856657]
[1735754516473,10.67856657,190.7,190.63,10.67856657]
[1735754517758,10.67856657,190.7,190.62,10.67856657]
[1735754517957,10.67856657,190.69,190.62,10.67856657]
[1735754520783,10.67856657,190.69,190.61,23.776884]
[1735754520784,10.67856657,190.69,190.63,10.67856657]
[1735754526383,10.67856657,190.66,190.6,20.0]
[1735754526563,10.67856657,190.66,190.6,30.67856657]
[1735754526761,10.67856657,190.65,190.59,1.5544]
[1735754526974,10.67856657,190.65,190.58,10.67856657]
[1735754528185,10.67856657,190.64,190.58,10.67856657]
[1735754528487,10.67856657,190.65,190.58,10.67856657]
[1735754530788,10.67856657,190.66,190.59,10.67856657]
[1735754531369,10.67856657,190.65,190.57,23.776884]
[1735754531682,10.67856657,190.64,190.58,10.67856657]
[1735754531890,10.67856657,190.65,190.58,10.67856657]
[1735754532484,10.67856657,190.66,190.59,10.67856657]
[1735754532697,10.67856657,190.67,190.6,10.67856657]
[1735754532985,10.67856657,190.7,190.64,10.67856657]
[1735754533370,10.67856657,190.69,190.64,23.776884]
[1735754533595,10.67856657,190.7,190.64,23.776884]
[1735754533972,10.67856657,190.69,190.64,23.776884]
[1735754535390,10.67856657,190.69,190.59,0.78668074]
[1735754535594,10.67856657,190.67,190.61,30.67856657]
[1735754536294,10.67856657,190.67,190.61,10.67856657]
[1735754536497,10.67856657,190.65,190.58,6.6562]
[1735754536806,10.67856657,190.65,190.59,10.67856657]
[1735754538590,10.67856657,190.66,190.6,34.45545057]
[1735754538790,10.67856657,190.68,190.62,10.67856657]
[1735754539098,10.67856657,190.68,190.63,23.776884]
[1735754541894,10.67856657,190.68,190.61,10.67856657]
[1735754542096,10.67856657,190.67,190.61,10.67856657]
[1735754542980,10.67856657,190.67,190.6,34.45545057]
[1735754545911,10.67856657,190.67,190.62,23.776884]
[1735754547382,10.67856657,190.69,190.62,10.67856657]
[1735754547903,10.67856657,190.7,190.63,10.67856657]
[1735754548319,1.5429,190.72,190.62,10.67856657]
[1735754548320,10.67856657,190.69,190.62,10.67856657]
[1735754550112,10.67856657,190.68,190.62,10.67856657]
[1735754552720,10.67856657,190.68,190.62,23.776884]
[1735754554024,10.67856657,190.69,190.62,10.67856657]
[1735754555123,10.67856657,190.67,190.61,10.67856657]
[1735754555506,10.67856657,190.67,190.62,23.776884]
[1735754556323,10.67856657,190.67,190.6,34.45545057]
[1735754556817,10.67856657,190.67,190.61,1.52356442]
[1735754556994,10.67856657,190.67,190.62,23.776884]
[1735754557629,10.67856657,190.67,190.61,23.776884]
[1735754559806,10.67856657,190.67,190.6,10.67856657]
[1735754560048,10.67856657,190.66,190.58,10.67856657]
[1735754560346,10.67856657,190.66,190.59,34.45545057]
[1735754560514,10.67856657,190.67,190.6,10.67856657]
[1735754560715,10.67856657,190.67,190.6,12.20445756]
[1735754561141,9.4081,190.72,190.61,34.45545057]
[1735754561343,10.67856657,190.7,190.64,23.776884]
[1735754561843,10.67856657,190.7,190.63,23.776884]
[1735754563750,10.67856657,190.69,190.63,23.776884]
[1735754564665,10.67856657,190.68,190.61,10.67856657]
[1735754565045,1.5429,190.72,190.61,34.45545057]
[1735754565349,10.67856657,190.68,190.61,34.45545057]
[1735754572049,10.67856657,190.68,190.61,23.776884]
[1735754572223,10.67856657,190.68,190.61,34.45545057]
[1735754573737,10.67856657,190.68,190.61,23.776884]
[1735754573943,10.67856657,190.68,190.62,1.52598799]
[1735754574255,10.67856657,190.67,190.62,1.52598799]
[1735754574463,10.67856657,190.67,190.61,23.776884]
[1735754575562,10.67856657,190.66,190.6,21.02282]
[1735754575727,10.67856657,190.65,190.62,1.52658512]
[1735754576446,10.67856657,190.65,190.58,10.67856657]
[1735754577336,10.67856657,190.65,190.59,1.52693686]
[1735754578063,6.4234,190.68,190.6,1.52693686]
[1735754578274,10.67856657,190.65,190.6,1.52693686]
[1735754578461,10.67856657,190.65,190.61,1.52693686]
[1735754579167,10.67856657,190.65,190.59,10.67856657]
[1735754579372,6.4234,190.68,190.59,10.67856657]
[1735754579530,10.67856657,190.65,190.59,10.67856657]
[1735754579956,10.67856657,190.64,190.6,1.52718458]
[1735754580235,10.67856657,190.65,190.6,1.52718458]
[1735754580654,10.67856657,190.65,190.58,34.45545057]
[1735754581185,10.67856657,190.65,190.59,1.52701569]
[1735754581679,10.67856657,190.64,190.59,1.52701569]
[1735754581978,10.67856657,190.64,190.57,31.70449757]
[1735754582179,10.67856657,190.63,190.57,21.025931]
[1735754582778,10.67856657,190.63,190.58,1.52663115]
[1735754583170,10.67856657,190.63,190.57,21.025931]
[1735754583478,1.6087,190.65,190.58,34.45545057]
[1735754583784,1.6087,190.65,190.6,10.67856657]
[1735754583981,1.6087,190.65,190.6,34.45545057]
[1735754584183,1.6087,190.65,190.6,23.776884]
[1735754585387,6.4234,190.68,190.61,10.67856657]
[1735754585542,10.67856657,190.67,190.61,10.67856657]
[1735754586286,1.6229,190.7,190.63,10.67856657]
[1735754586582,1.6229,190.7,190.64,10.67856657]
[1735754586961,12.30146657,190.7,190.64,10.67856657]
[1735754588492,12.30146657,190.7,190.64,23.776884]
[1735754589186,10.67856657,190.7,190.64,23.776884]
[1735754592002,10.67856657,190.69,190.62,10.67856657]
[1735754592167,10.67856657,190.67,190.55,22.9945794]
[1735754592364,10.67856657,190.67,190.6,10.67856657]
[1735754592665,10.67856657,190.66,190.61,23.776884]
[1735754594566,10.67856657,190.67,190.61,10.67856657]
[1735754596881,10.67856657,190.67,190.61,23.776884]
[1735754597901,10.67856657,190.69,190.62,10.67856657]
[1735754598205,10.67856657,190.69,190.63,23.776884]
[1735754598706,10.67856657,190.7,190.63,10.67856657]
[1735754601098,10.67856657,190.69,190.63,23.776884]
[1735754603890,10.67856657,190.68,190.61,10.67856657]
[1735754604192,10.67856657,190.66,190.59,10.67856657]
[1735754604393,10.67856657,190.67,190.6,10.67856657]
[1735754604599,10.67856657,190.67,190.61,23.776884]
[1735754605506,10.67856657,190.68,190.62,10.67856657]
[1735754605803,10.67856657,190.68,190.63,23.776884]
[1735754606097,10.67856657,190.69,190.63,23.776884]
[1735754607299,10.67856657,190.71,190.65,23.776884]
[1735754607595,6.35709644,190.72,190.67,23.776884]
[1735754607778,10.67856657,190.73,190.67,23.776884]
[1735754607980,10.67856657,190.74,190.67,10.67856657]
[1735754608175,10.67856657,190.75,190.69,10.67856657]
[1735754608493,17.03566301,190.77,190.71,23.776884]
[1735754610101,10.67856657,190.76,190.71,23.776884]
[1735754610282,10.67856657,190.74,190.68,10.67856657]
[1735754610487,10.67856657,190.74,190.67,10.67856657]
[1735754610690,10.67856657,190.75,190.69,23.776884]
[1735754615893,10.67856657,190.74,190.67,34.45545057]
[1735754618611,10.67856657,190.74,190.69,23.776884]
[1735754618793,10.67856657,190.72,190.68,10.678566]
[1735754623506,10.67856657,190.73,190.68,10.678566]
[1735754623814,10.67856657,190.74,190.68,10.678566]
[1735754626596,10.67856657,190.74,190.69,23.776884]
[1735754628105,10.67856657,190.74,190.68,10.678566]
[1735754628311,10.67856657,190.73,190.68,10.678566]
[1735754633102,10.67856657,190.74,190.68,10.678566]
[1735754634118,10.67856657,190.73,190.68,10.678566]
[1735754637519,10.67856657,190.72,190.68,10.678566]
[1735754637713,10.67856657,190.7,190.63,10.67856657]
[1735754637900,10.67856657,190.68,190.63,10.678566]
[1735754638100,10.67856657,190.68,190.62,1.5011]
[1735754638309,10.67856657,190.68,190.61,17.11636657]
[1735754638506,10.67856657,190.68,190.62,23.776884]
[1735754639148,10.67856657,190.66,190.59,10.67856657]
[1735754639436,10.67856657,190.66,190.6,25.2910088]
[1735754640234,10.67856657,190.66,190.6,23.776884]
[1735754641457,10.67856657,190.65,190.59,23.776884]
[1735754641621,6.4761,190.69,190.57,10.67856657]
[1735754641622,10.67856657,190.64,190.57,10.67856657]
[1735754642217,10.67856657,190.64,190.58,23.776884]
[1735754642551,10.67856657,190.62,190.58,1.51451967]
[1735754643049,10.67856657,190.62,190.57,23.776884]
[1735754643453,10.67856657,190.62,190.56,34.45545057]
[1735754643930,10.67856657,190.63,190.56,34.45545057]
[1735754644453,10.67856657,190.65,190.6,23.776884]
[1735754644657,10.67856657,190.66,190.6,23.776884]
[1735754645234,10.67856657,190.65,190.6,23.776884]
[1735754647360,10.67856657,190.65,190.59,23.776884]
[1735754648425,10.67856657,190.65,190.59,10.67856657]
[1735754649943,10.67856657,190.65,190.57,23.776884]
[1735754650154,10.67856657,190.65,190.58,10.67856657]
[1735754650322,10.67856657,190.65,190.59,23.776884]
[1735754650653,10.67856657,190.65,190.58,10.67856657]
[1735754650858,10.67856657,190.64,190.57,10.67856657]
[1735754651927,10.67856657,190.64,190.57,34.45545057]
[1735754652261,10.67856657,190.63,190.57,34.45545057]
[1735754654419,10.67856657,190.63,190.57,23.776884]
[1735754655232,10.67856657,190.63,190.58,23.776884]
[1735754657359,20.0,190.66,190.57,23.776884]
[1735754657546,10.67856657,190.64,190.57,34.45545057]
[1735754658224,6.4761,190.69,190.57,34.45545057]
[1735754658431,10.67856657,190.64,190.57,34.45545057]
[1735754659049,10.67856657,190.64,190.58,10.67856657]
[1735754661350,10.67856657,190.65,190.6,23.776884]
[1735754662651,10.67856657,190.66,190.6,23.776884]
[1735754665457,10.67856657,190.64,190.58,23.776884]
[1735754665926,10.67856657,190.64,190.55,10.678567]
[1735754665927,10.67856657,190.62,190.55,10.67856657]
[1735754666330,10.67856657,190.62,190.56,23.776884]
[1735754667555,10.67856657,190.62,190.56,10.67856657]
[1735754668054,10.67856657,190.64,190.57,10.67856657]
[1735754668248,10.67856657,190.64,190.58,23.776884]
[1735754669255,10.67856657,190.61,190.55,23.776884]
[1735754670150,10.67856657,190.6,190.55,23.776884]
[1735754670731,10.67856657,190.61,190.55,23.776884]
[1735754673859,10.67856657,190.6,190.55,23.776884]
[1735754674035,10.67856657,190.59,190.52,10.67856657]
[1735754674546,6.35709644,190.64,190.53,23.776884]
[1735754674547,10.67856657,190.58,190.53,23.776884]
[1735754674752,10.67856657,190.56,190.53,23.776884]
[1735754675057,10.67856657,190.56,190.51,23.776884]
[1735754675257,10.67856657,190.56,190.5,10.67856657]
[1735754675760,10.67856657,190.56,190.51,1.51508958]
[1735754676340,10.67856657,190.57,190.52,1.51508958]
[1735754677163,10.67856657,190.57,190.51,10.67856657]
[1735754677860,10.67856657,190.56,190.51,23.776884]
[1735754678754,10.67856657,190.56,190.52,1.51661401]
[1735754679544,10.67856657,190.56,190.51,23.776884]
[1735754679840,10.67856657,190.59,190.53,23.776884]
[1735754680045,10.67856657,190.61,190.55,34.45545057]
[1735754680244,10.67856657,190.6,190.54,10.67856657]
[1735754680444,10.67856657,190.59,190.52,10.67856657]
[1735754682280,10.67856657,190.58,190.52,23.776884]
[1735754683153,10.67856657,190.58,190.53,1.51921227]
[1735754683353,10.67856657,190.57,190.53,1.51921227]
[1735754683864,10.67856657,190.57,190.52,23.776884]
[1735754684071,10.67856657,190.57,190.51,23.776884]
[1735754684665,36.35709644,190.64,190.51,23.776884]
[1735754684851,10.67856657,190.58,190.52,1.51997242]
[1735754685366,10.67856657,190.58,190.51,10.67856657]
[1735754686670,10.67856657,190.58,190.52,1.5195678]
[1735754687172,10.67856657,190.58,190.51,10.67856657]
[1735754687772,10.67856657,190.57,190.51,10.67856657]
[1735754688575,10.67856657,190.57,190.52,1.51887329]
[1735754688776,10.67856657,190.58,190.52,1.51887329]
[1735754689366,10.67856657,190.58,190.51,10.67856657]
[1735754691072,10.67856657,190.58,190.52,1.51887232]
[1735754691576,10.67856657,190.58,190.51,10.67856657]
[1735754693074,10.67856657,190.58,190.53,23.776884]
[1735754693888,10.67856657,190.58,190.51,10.67856657]
[1735754694096,10.67856657,190.57,190.51,23.776884]
[1735754695155,10.67856657,190.58,190.51,10.67856657]
[1735754695658,10.67856657,190.58,190.52,1.51817854]
[1735754696352,10.67856657,190.57,190.51,23.776884]
[1735754697068,6.35709644,190.64,190.54,34.45545057]
[1735754697252,10.67856657,190.62,190.56,34.45545057]
[1735754698276,10.67856657,190.62,190.57,1.51773886]
[1735754698789,10.67856657,190.62,190.56,34.45545057]
[1735754698790,10.67856657,190.62,190.58,25.29462286]
[1735754699163,10.67856657,190.63,190.58,25.29462286]
[1735754699479,10.67856657,190.63,190.56,10.67856657]
[1735754699694,10.67856657,190.62,190.56,23.776884]
[1735754700357,10.67856657,190.62,190.58,23.776884]
[1735754700579,10.67856657,190.62,190.57,1.51635363]
[1735754700780,10.67856657,190.61,190.54,10.67856657]
[1735754701194,10.67856657,190.61,190.55,10.67856657]
[1735754701796,10.67856657,190.61,190.57,23.776884]
[1735754702283,10.67856657,190.6,190.56,1.51674855]
[1735754702594,10.67856657,190.6,190.54,23.776884]
[1735754703602,10.67856657,190.59,190.54,23.776884]
[1735754703769,10.67856657,190.59,190.52,10.67856657]
[1735754704088,10.67856657,190.58,190.55,1.51813245]
[1735754704278,10.67856657,190.57,190.55,1.51813245]
[1735754704775,10.67856657,190.58,190.51,54.45545057]
[1735754705596,10.67856657,190.58,190.52,1.51875986]
[1735754705773,10.67856657,190.59,190.52,12.19732643]
[1735754705980,10.67856657,190.58,190.52,12.19732643]
[1735754706178,10.67856657,190.58,190.54,23.776884]
[1735754706794,10.67856657,190.61,190.54,34.45545057]
[1735754707889,10.67856657,190.62,190.56,23.776884]
[1735754708088,10.67856657,190.61,190.55,23.776884]
[1735754711196,10.67856657,190.6,190.55,23.776884]
[1735754711393,10.67856657,190.6,190.53,10.67856657]
[1735754712194,10.67856657,190.6,190.56,20.0]
[1735754712510,10.67856657,190.6,190.57,23.776884]
[1735754712879,10.67856657,190.6,190.57,20.0]
[1735754714198,10.67856657,190.6,190.54,23.776884]
[1735754714805,10.67856657,190.6,190.55,1.51898063]
[1735754715002,10.67856657,190.6,190.56,23.776884]
[1735754715294,10.67856657,190.6,190.56,20.0]
[1735754715476,10.67856657,190.6,190.54,23.776884]
[1735754716595,10.67856657,190.6,190.56,23.776884]
[1735754716974,10.67856657,190.59,190.55,1.51906814]
[1735754717176,10.67856657,190.58,190.55,1.51906814]
[1735754717398,10.67856657,190.56,190.55,1.51906814]
[1735754717584,10.67856657,190.56,190.53,23.776884]
[1735754720599,10.67856657,190.56,190.52,20.0]
[1735754721103,10.67856657,190.55,190.52,20.0]
[1735754721604,10.67856657,190.54,190.53,1.51926058]
[1735754722178,10.67856657,190.54,190.49,23.776884]
[1735754722899,10.67856657,190.54,190.5,1.5193785]
[1735754723498,10.67856657,190.54,190.51,1.5193785]
[1735754723796,10.67856657,190.53,190.51,1.5193785]
[1735754724183,10.67856657,190.53,190.49,23.776884]
[1735754724713,10.67856657,190.53,190.5,1.51919292]
[1735754725394,10.67856657,190.52,190.48,21.032371]
[1735754725585,10.67856657,190.51,190.48,21.032371]
[1735754725985,10.67856657,190.51,190.49,1.51949843]
[1735754726191,10.67856657,190.5,190.49,1.51949843]
[1735754726699,10.67856657,190.5,190.47,44.809255]
[1735754728120,10.67856657,190.5,190.47,23.776884]
[1735754728419,10.67856657,190.48,190.47,10.678567]
[1735754728578,10.67856657,190.49,190.47,10.678567]
[1735754728778,10.67856657,190.48,190.47,10.678567]
[1735754729221,10.67856657,190.48,190.42,23.776884]
[1735754729510,6.2534,190.53,190.42,23.776884]
[1735754729511,10.67856657,190.47,190.42,10.678566]
[1735754729884,10.67856657,190.46,190.43,1.51865572]
[1735754730387,14.1261,190.53,190.43,1.51865572]
[1735754730593,10.67856657,190.47,190.42,34.45545]
[1735754731088,10.67856657,190.47,190.42,10.678566]
[1735754731293,10.67856657,190.47,190.42,34.45545]
[1735754731512,10.67856657,190.43,190.42,34.45545]
[1735754731706,10.67856657,190.43,190.35,20.47575627]
[1735754731915,10.67856657,190.41,190.37,21.047211]
[1735754732289,10.67856657,190.42,190.36,34.45545057]
[1735754732615,10.67856657,190.42,190.36,21.35713257]
[1735754732788,10.67856657,190.42,190.37,1.51703113]
[1735754733212,10.67856657,190.42,190.38,23.776884]
[1735754733416,10.67856657,190.42,190.38,25.29391513]
[1735754733823,10.67856657,190.42,190.37,23.776884]
[1735754734412,10.67856657,190.46,190.4,23.776884]
[1735754734986,10.67856657,190.45,190.4,23.776884]
[1735754735192,10.67856657,190.44,190.38,10.67856657]
[1735754737128,10.67856657,190.45,190.38,10.67856657]
[1735754738818,10.67856657,190.44,190.38,10.67856657]
[1735754739316,10.67856657,190.44,190.37,34.45545057]
[1735754741716,10.67856657,190.43,190.36,21.35713257]
[1735754742026,10.67856657,190.42,190.36,10.678566]
[1735754743133,10.67856657,190.42,190.37,23.776884]
[1735754743644,10.67856657,190.43,190.37,23.776884]
[1735754744725,10.67856657,190.42,190.37,23.776884]
[1735754746041,10.67856657,190.42,190.31,0.78764948]
[1735754746042,10.67856657,190.4,190.33,10.67856657]
[1735754746411,10.67856657,190.4,190.35,23.776884]
[1735754748643,10.67856657,190.41,190.35,23.776884]